Cogmind - Beta 13 @@@ ROGUE MODE // 2024.06.02 @ 16:33:52 Player: karotgaemin Result: Destroyed by G-34 Mercenary with Small Laser Performance ------------- Evolutions (0) 0 Regions Visited (2) 400 Robots Destroyed (8) 40 Value Destroyed (132) 132 Prototype IDs (0) 0 Alien Tech Used (0) 0 Bonus (0) 0 TOTAL SCORE: 572 Bonus ------- None Cogmind --------- Core Integrity 0/250 Matter 284/300 Energy 100/100 System Corruption 2% Temperature Cool (6) Movement Core (700) Ox13 Location -10/Mines Parts ------- > --- POWER (1) -------- (None) > --- PROPULSION (2) --- (None) > --- UTILITY (2) ------ High-capacity Storage Unit Terrain Scanner > --- WEAPON (2) ------- (None) > --- INVENTORY (20) --- Ion Engine Light Ion Engine Light Ion Engine Aluminum Leg Aluminum Leg Improved Terrain Scanner Seismic Detector Light Assault Rifle Peak State ------------ > --- POWER ------------ Light Nuclear Core > --- PROPULSION ------- Wheel Wheel > --- UTILITY ---------- High-capacity Storage Unit Terrain Scanner > --- WEAPON ----------- Light Assault Rifle Light Assault Rifle > --- INVENTORY -------- Ion Engine Light Ion Engine Light Ion Engine Aluminum Leg Aluminum Leg Compact Wheel Improved Terrain Scanner Light Assault Rifle [Rating: 10] Favorites ----------- Power Light Ion Engine Engine Light Ion Engine Power Core Light Nuclear Core Propulsion Wheel Wheel Wheel Utility High-capacity Storage Unit Device Seismic Detector Storage High-capacity Storage Unit Weapon Light Assault Rifle Ballistic Gun Light Assault Rifle Build | -11 -10 -10 ------- Run | Yrd Mat Min Slots Evolved . | . . . Power . | . . . Propulsion . | . . . Utility . | . . . Weapon . | . . . Parts Attached 18 | 7 10 1 Power 3 | 1 2 . Engine 2 | 1 1 . Core 1 | . 1 . Reactor . | . . . Propulsion 7 | 2 4 1 Treads . | . . . Leg . | . . . Wheel 7 | 2 4 1 Hover . | . . . Flight . | . . . Utility 5 | 2 3 . Device 2 | 1 1 . Storage 3 | 1 2 . Processor . | . . . Hackware . | . . . Protection . | . . . Artifact . | . . . Weapon 3 | 2 1 . Energy Gun . | . . . Energy Cannon . | . . . Ballistic Gun 3 | 2 1 . Ballistic Cannon . | . . . Launcher . | . . . Special Weapon . | . . . Impact Weapon . | . . . Slashing Weapon . | . . . Piercing Weapon . | . . . Special Melee Weapon . | . . . Unidentified Prototypes . | . . . Parts Lost 7 | . 1 6 Power 1 | . . 1 Propulsion 3 | . . 3 Utility 1 | . 1 . Weapon 2 | . . 2 Highest Loss Streak 6 | . 1 6 To Critical Strikes . | . . . Average Slot Usage (%) 93 | . 96 73 Engine 7 | . 8 . Core 6 | . 5 8 Wheel 25 | . 28 11 Device 11 | . 11 14 Storage 14 | . 14 14 Ballistic Gun 27 | . 28 25 Naked Turns . | . . . Heaviest Build 48 | 11 48 48 Greatest Support 26 | 26 26 20 Greatest Overweight (x) 2 | . 2 2 Average Overweight (x) . | . 1 2 Largest Inventory Capacity 20 | 8 20 20 Average Capacity 15 | 7 17 20 Most Carried 10 | 6 10 9 Average Carried 5 | 2 6 8 Final Capacity 20 | 8 20 20 Final Carried 9 | 5 9 8 Class Distribution -------------------- 100% | Mutant Dominant Class ---------------- Mutant | -10/Materials Mutant | -10/Mines Resources | -11 -10 -10 ----------- Run | Yrd Mat Min Matter Collected 395 | 268 127 . Remotely . | . . . Salvage Created 199 | 45 154 . Parts 17 | 5 12 . Haulers Intercepted . | . . . Recyclers Shooed . | . . . Parts Field Recycled . | . . . Retrieved Matter . | . . . Parts Self-Destructed . | . . . Prevented . | . . . Kills | -11 -10 -10 ------- Run | Yrd Mat Min Combat Hostiles Destroyed 5 | . 5 . Guns 5 | . 5 . Classes Destroyed 3 | 1 2 . Tunneler 3 | 2 1 . Swarmer 3 | . 3 . Grunt 2 | . 2 . Best Kill Streak 3 | 2 3 . Combat Bots Only 3 | . 3 . Max Kills in Single Turn 1 | 1 1 . Gunslinging . | . . . Exploded . | . . . Melee . | . . . Uniques/NPCs Destroyed . | . . . Combat | -11 -10 -10 -------- Run | Yrd Mat Min Hostile Shots Fired 87 | . 45 42 Missed 20 | . 12 8 Damage Taken 835 | . 358 477 Core 259 | . 111 148 Absorbed by Shields . | . . . Core Remaining (%) 100 | 100 . . Volleys Fired 33 | 5 22 6 Largest 2 | 2 2 2 Hottest 40 | 40 40 40 Shots Fired 66 | 10 44 12 Gun 66 | 10 44 12 Cannon . | . . . Launcher . | . . . Special . | . . . Kinetic 66 | 10 44 12 Thermal . | . . . Explosive . | . . . Electromagnetic . | . . . Robot Hit Streak 5 | 2 5 2 Robot Miss Streak 3 | 2 3 3 Penetration Max . | . . . Secondary Targets . | . . . Shots Hit Robots 38 | 6 26 6 Core Hits 17 | 3 13 1 Critical Kills . | . . . Critical Parts Destroyed . | . . . Critical Strikes . | . . . Melee Attacks . | . . . Impact . | . . . Slashing . | . . . Piercing . | . . . Sneak Attacks . | . . . Combat Hostiles . | . . . Follow-up Attacks . | . . . Damage Inflicted 304 | 56 199 49 Guns 304 | 56 199 49 Cannons . | . . . Explosions . | . . . Melee . | . . . Ramming . | . . . Kinetic 304 | 56 199 49 Thermal . | . . . Explosive . | . . . Electromagnetic . | . . . Impact . | . . . Slashing . | . . . Piercing . | . . . Highest Corruption 2 | . 2 2 Average Corruption 2 | . 2 2 Corruption Purged . | . . . Corruption Blocked . | . . . Effects 5 | . 4 1 Message Errors 1 | . 1 . Heat Flow Errors 3 | . 2 1 Data Loss (minor) 1 | . 1 . Overload Shots . | . . . Overflow Damage . | . . . Projectiles . | . . . Explosions . | . . . Melee . | . . . Knockbacks . | . . . Impact . | . . . Kinetic . | . . . Secondary . | . . . Self-Inflicted Damage . | . . . Shots . | . . . Rammed . | . . . Targets Rammed . | . . . Kicked . | . . . Crushed . | . . . Highest Temperature 297 | . 289 297 Average Temperature 142 | . 133 160 Received Heat Transfer 411 | . 129 282 Effects 3 | . . 3 Energy Bleed 1 | . . 1 Interference 2 | . . 2 Siege Activations . | . . . Robots Corrupted . | . . . Combat Hostiles . | . . . Parts Fried . | . . . Impact Corruptions . | . . . Robots Melted . | . . . Combat Hostiles . | . . . Parts Melted . | . . . Heat Transferred . | . . . Parts Sabotaged . | . . . Parts Stolen . | . . . Parts Stripped . | . . . Power Chain Reactions . | . . . Alert | -11 -10 -10 ------- Run | Yrd Mat Min Peak Influence 138 | 10 138 53 Initial 53 | . 6 53 Average 69 | 2 98 28 Maximum Alert Level . | . . . Low Security (%) 100 | 100 100 100 Level 1 . | . . . Level 2 . | . . . Level 3 . | . . . Level 4 . | . . . Level 5 . | . . . High Security . | . . . Max Security . | . . . Squads Dispatched . | . . . Investigation . | . . . Extermination . | . . . Reinforcement . | . . . Assault . | . . . Garrison . | . . . Intercept . | . . . Searches Triggered . | . . . Construction Impeded . | . . . Haulers Reinforced . | . . . Active Scanning Responses . | . . . Cargo Convoy Interrupts . | . . . Stealth | -11 -10 -10 --------- Run | Yrd Mat Min Distress Signals . | . . . Communications Jammed . | . . . Distress Signals . | . . . Times Spotted 9 | . 7 2 Peak Tracking Total 3 | . 3 2 Tactical Retreats 1 | . 1 . Traps | -11 -10 -10 ------- Run | Yrd Mat Min Traps Triggered 1 | . 1 . Indirectly . | . . . Trap Hack Attempts . | . . . Triggered . | . . . Disarmed . | . . . Reprogrammed . | . . . Reused . | . . . Traps Extracted . | . . . Installed . | . . . Triggered . | . . . Machines | -11 -10 -10 ---------- Run | Yrd Mat Min Machines Disabled . | . . . Max in Single Turn . | . . . Machines Repaired . | . . . Machines Dismantled . | . . . Machines Sabotaged . | . . . Overloaded Fab Kills . | . . . Hacking | -11 -10 -10 --------- Run | Yrd Mat Min Machines Accessed 1 | . 1 . Terminals 1 | . 1 . Fabricators . | . . . Repair Stations . | . . . Recycling Units . | . . . Scanalyzers . | . . . Garrison Access . | . . . Total Hacks 3 | . 3 . Successful 2 | . 2 . Failed 1 | . 1 . Catastrophic . | . . . Database Lockouts . | . . . Manual . | . . . Terminals 3 | . 3 . Fabricators . | . . . Repair Stations . | . . . Recycling Units . | . . . Scanalyzers . | . . . Garrison Access . | . . . Terminal Hacks 2 | . 2 . Record 2 | . 2 . Fabricator Hacks . | . . . Repair Station Hacks . | . . . Recycling Unit Hacks . | . . . Scanalyzer . | . . . Garrison Access Hacks . | . . . Unauthorized Hacks . | . . . Terminals . | . . . Fabricators . | . . . Repair Stations . | . . . Recycling Units . | . . . Scanalyzers . | . . . Garrison Access . | . . . Data Cores Recovered . | . . . Used . | . . . Hacking Detections . | . . . Full Trace Events . | . . . Feedback Events . | . . . Feedback Blocked . | . . . Robot Schematics Acquired . | . . . Robots Built . | . . . Authchips . | . . . Time . | . . . Total Robot Build Rating . | . . . Part Schematics Acquired . | . . . Parts Built . | . . . Authchips . | . . . Time . | . . . Total Part Build Rating . | . . . Parts Repaired . | . . . Time . | . . . Parts Recycled . | . . . Recycled Matter . | . . . Retrieved Matter . | . . . Retrieved Components . | . . . Parts Scanalyzed . | . . . Part Schematics Acquired . | . . . Parts Damaged . | . . . Bothacking | -11 -10 -10 ------------ Run | Yrd Mat Min Used RIF Installer . | . . . Robots Hacked . | . . . Non-combat . | . . . Combat . | . . . Robot Hacks Applied . | . . . Relay Couplers Released . | . . . Fabnet Peak Effective % . | . . . Robots Rewired . | . . . Allies Hacked . | . . . Hacks Repelled . | . . . Allies | -11 -10 -10 -------- Run | Yrd Mat Min Total Allies . | . . . Largest Group . | . . . Highest-Rated Group . | . . . Highest-Rated Ally . | . . . Total Orders . | . . . Ally Attacks . | . . . Total Damage . | . . . Kills . | . . . Allies Corrupted . | . . . Allies Melted . | . . . Intel | -11 -10 -10 ------- Run | Yrd Mat Min Robot Analysis Total . | . . . Derelict Logs Recovered . | . . . Drone Launches . | . . . Drone Recoveries . | . . . Exploration | -11 -10 -10 ------------- Run | Yrd Mat Min Turns Passed 434 | 95 293 46 Spaces Moved 261 | 74 185 2 Core 8 | 8 . . Treads . | . . . Legs . | . . . Wheels 253 | 66 185 2 Hover . | . . . Flight . | . . . Fastest Speed 50 | 50 90 110 Average Speed 98 | 85 103 110 Slowest Speed 110 | 90 110 110 Overloaded Moves . | . . . Propulsion Burnouts . | . . . Robots Hopped . | . . . Cave-ins Triggered . | . . . Exploration Rate (%) 17 | 4 43 5 Regions Visited 2 Branch Regions 1 Pre-discovered Areas . | . . . Known Exits Taken . | . . . Unknown Exits Taken 2 | 1 1 . Scrap Searched . | . . . Spaces Dug . | . . . Terrain Destroyed . | . . . Melee . | . . . Projectile . | . . . AOE . | . . . Terrain Rammed . | . . . Walls Destroyed . | . . . Machines Disabled . | . . . Actions | -11 -10 -10 --------- Run | Yrd Mat Min Total 382 | 97 249 36 Wait 47 | . 20 27 Move 259 | 73 184 2 Hop . | . . . Pick Up 21 | 12 9 . Fast Attach . | . . . Attach 9 | 7 1 1 Detach . | . . . Swap 9 | . 9 . Drop 4 | . 4 . Fire 33 | 5 22 6 Melee . | . . . Ram . | . . . Kick . | . . . Crush . | . . . Escape Stasis . | . . . Rewire . | . . . Trap . | . . . Miscellaneous . | . . . Route ------- -11/Scrapyard -10/Materials (discovered 2 exits: [*Mat] / [*Min]) -10/Mines History --------- Turn | Location | Event 30 | -11/Scrapyard | Discovered new exit (range 15) 96 | -11/Scrapyard | Entered Materials 275 | -10/Materials | Discovered new exit (range 16) 312 | -10/Materials | Discovered new exit (range 13) 324 | -10/Materials | Build established: Mutant 389 | -10/Materials | Entered Mines 404 | -10/Mines | Core integrity fell below 50% 415 | -10/Mines | Met a Derelict bent on vengeance 424 | -10/Mines | Core integrity fell below 20% 435 | -10/Mines | Destroyed by G-34 Mercenary with Small Laser Last Messages --------------- 00342_ U-05 Engineer lays Concrete. 00344_ Acquired Wheel. 00346_ Dropped Com. Wheel. 00374_ T-07 Excavator is excavating. 00374_ U-05 Engineer lays Concrete. 00379_ T-07 Excavator is excavating. LOCATION=UNKNOWN GOAL=ESCAPE 00397_ Critical hit (Burn: +37). 00399_ System corrupted: Heat flow error (+249). 00399_ Wheel destroyed. 00401_ Overheating: Energy bleed (-22). 00408_ Overheating: System interference. 00408_ Lgt. Assault Rifle temporarily disabled. 00409_ Wheel destroyed. 00411_ Lgt. Nuclear Core destroyed. 00413_ Seismic Survey Station disabled. 00419_ Wheel destroyed. 00425_ Lgt. Assault Rifle destroyed. Map ----- +----------------------------------------------------+ | ????????????????????????????????? | | ????????????????????????????????? | | ????????????????????????????????? | | ????????????????????????????????? | | ????????????????????????????????? | | ????????????????????????????????? | | ????????????????????????????????? | | ????????????????????????????????? | | ????????????????????????????????? | | ????????????????????????????????? | | ????????????????????????????????? | | ????????????????????????????????? | | ????????????????????????????#???? | | ????????????????????????????#???? | | ????????????????????????????#???? | | ????????????????????????????????? | | ???????????????????????#????????? | | ????????????????#??????????##??#? | | ?????????????#??????????????????# | | ??????????????#???#?????????????? | | ??????????????#?????###########?? | | ????????????????????# #?? | | ????????????????#???# #?? | | ????????????????????# """g #?? | | ????????????????????# """ #?? | | ????????????????????# "" @ #?? | | ????????????????????# g #?? | | ???????????????? """ """ #?? | | ????????????? #### """ """ #?? | | ???????????? ??????# """ """ ##? | | ????????????????????# #?? | | ????????????????????###########?? | | ????????????????????????????????? | | ????????????????????????????????? | | ??????????????????????????????#?? | | ????????????????????#???????????? | | ?????????????????? ??????#??????? | | ???????????????????????????????#? | | ??????????????????????#?????????? | | ????????????????????????????????? | | ????????????????????????????????? | | ????????????????????????????????? | | ????????????????????????????????? | | ????????????????????????????????? | | ????????????????????????????????? | | ????????????????????????????????? | | | | | | | | | +----------------------------------------------------+ Best States ------------- Heat Dissipation 25 Energy Generation 14 Energy Capacity 160 Matter Stores 300 Matter Capacity 300 Sight Range 16 Terrain Scan Range 14 Terrain Scan Density 10 Evasion (%) 42 Item Schematics ----------------- None Robot Schematics ------------------ None Fabricated ------------ Nothing Alien Tech Used ----------------- None Achievements -------------- None Challenges ------------ None Game ------ Seed ColdTransmissionPerforator Manual? 0 Play Time 00:05:22 Cumulative 12.2 hours Start 2024.06.02 @ 16:27:13 End 2024.06.02 @ 16:33:52 Sessions 1 Manual Loads 0 Difficulty Rogue Special Mode None Game No. 34 Rogue 34 Adventurer 0 Explorer 0 Win Type - Total 0 Types 0/0/0/0/0/0/0/0/0 Lore% 8 Gallery% 23 Achievement% 16 Wizard Run 0 Options --------- Layout 1 ASCII 0 Keyboard 0 Movement Mouse Keybinds 0 Fullscreen 2 Font 24/Smallcaps Map View 50x35 Zoom Use 0% Tactical HUD 1 Map Filters NONE Filters NONE Steam 1 RUN: 0d2f700c-0da3-43b5-8736-3a65bbf7355e